Workbook

Sheet Vsebina
B14: Posvetovanje o predlogu popustov, multiplikatorjev in sezonskih faktorjev
B15: na podlagi 28. člena Uredbe Komisije (EU) 2017/460 z dne 16. marca 2017 o oblikovanju kodeksa omrežja o usklajenih tarifnih strukturah za plin
B19: Priloga 1
B20: ='Sezonski faktorji'!B3:F3 -> Določitev sezonskih faktorjev za tarifno obdobje 2022

Sheet Sezonski faktorji
B3: ="Določitev sezonskih faktorjev za tarifno obdobje "&F20+2 -> Določitev sezonskih faktorjev za tarifno obdobje 2022
B4: skladno s 15. členom UREDBE KOMISIJE (EU) 2017/460
B5: z dne 16. marca 2017 o oblikovanju kodeksa omrežja o usklajenih tarifnih strukturah za plin
B7: Parametri izračuna
E8: Vrednosti
B9: Multiplikatorji za kvartalne produkte zmogljivosti | E9: 1.4
B10: Multiplikatorji za mesečne produkte zmogljivosti (maksimalno 1,5) | E10: 1.45
B11: Multiplikatorji za dnevne produkte zmogljivosti (maksimalno 3) | E11: 2.75
B12: Multiplikatorji za znotraj-dnevne produkte zmogljivosti (maksimalno 3) | E12: 2.8
B13: Potenčni eksponent E (0 <= E <= 2) | E13: 1.5
B17: Povprečni urni pretok za vsak posamezen mesec [kWh]
B19: Plinski mesec | C19: Leto
C20: 2017 | D20: 2018 | E20: 2019 | F20: 2020 | G20: 2021*
B21: Januar | C21: 4113392.654 | D21: 1928091.357 | E21: 2180330.412 | F21: 2720092.899 | G21: 2043354.904
B22: Februar | C22: 3561373.265 | D22: 2415538.379 | E22: 2047407.515 | F22: 2450373.576 | G22: 1896939.187
B23: Marec | C23: 2789539.775 | D23: 2155368.3 | E23: 1696178.797 | F23: 2282307.872 | G23: 1619753.327
B24: April | C24: 2458142.671 | D24: 1287681.948 | E24: 1782138.208 | F24: 1573945.674 | G24: 1162034.793
B25: Maj | C25: 2234459.566 | D25: 1117251.751 | E25: 1418603.082 | F25: 1400334.397 | G25: 1241648.642
B26: Junij | C26: 2372118.626 | D26: 1080306.086 | E26: 1195936.406 | F26: 1488961.814 | G26: 1211011.166
B27: Julij | C27: 2512083.773 | D27: 1080618.449 | E27: 1095000.699 | F27: 1689183.788 | G27: 1191400.921
B28: Avgust | C28: 2642508.275 | D28: 1065725.972 | E28: 1926345.777 | F28: 2912168.043 | G28: 1639357.9
B29: September | C29: 2425371.717 | D29: 1247158.293 | E29: 1809139.653 | F29: 1567105.106 | G29: 1258829.402
B30: Oktober | C30: 1822004.254 | D30: 1354084 | E30: 2075916.192 | F30: 1380979.927 | G30: 1308122.419
B31: November | C31: 1938260.561 | D31: 1624197.874 | E31: 2313216.822 | F31: 1720755.501 | G31: 1569798.83
B32: December | C32: 2438053.297 | D32: 1936662.436 | E32: 2369777.825 | F32: 1755992.795 | G32: 1606887.619
B33: Povprečno | C33: =AVERAGE(C21:C32) -> 2608942.369 | D33: =AVERAGE(D21:D32) -> 1524390.404 | E33: 1825832.616 | F33: 1911850.116 | G33: 1479094.926
B35: * Del podatkov za leto 2020 določen na osnovi prognoziranih pretokov.
B38: Predpisan kalkulacijski postopek v skladu s členom 15 (odstavki 2 do 6)
B39: Opomba: Postopek izračuna sezonskih faktorjev za mesečne standardne produkte zmogljivosti za zagotovljeno zmogljivost temelji na prognoziranih pretokih.
B41: Člen 15.3a & b
B42: (a) "povprečni podatki o prognoziranih pretokih ali prognoziranih pogodbenih zmogljivostih, če se sezonski faktorji računajo za nekatere ali vse povezovalne točke;" & (b) "izračunane vrednosti iz točke (a) se seštejejo"
B44: Plinski mesec | C44: ="Prognoziran povprečni urni pretok v letu "&(F20+1)&" [kWh]" -> Prognoziran povprečni urni pretok v letu 2021 [kWh]
B45: Januar | C45: 2212736.042
B46: Februar | C46: 2129951.514
B47: Marec | C47: 1841697.086
B48: April | C48: 1343354.664
B49: Maj | C49: 1324097.85
B50: Junij | C50: 1281125.514
B51: Julij | C51: 1213905.87
B52: Avgust | C52: 1587043.447
B53: September | C53: 1286966.925
B54: Oktober | C54: 1473276.101
B55: November | C55: 1756044.775
B56: December | C56: 1824883.665
B57: Seštevek | C57: =SUM(C45:C56) -> 19275083.45
B59: Člen 15.3c
B60: "stopnja uporabe se izračuna tako, da se vsaka od izračunanih vrednosti iz točke (a) deli z izračunano vrednostjo iz točke (b);"
B63: Plinski mesec | C63: Stopnja uporabe | D63: Korekcija stopnje uporabe v primeru vrednosti 0
B64: Januar | C64: =C45/$C$57 -> 0.1147977412 | D64: =IF(C45/$C$57=0,0.1,C45/$C$57) -> 0.1147977412
B65: Februar | C65: =C46/$C$57 -> 0.1105028427 | D65: =IF(C46/$C$57=0,0.1,C46/$C$57) -> 0.1105028427
B66: Marec | C66: 0.09554807327 | D66: 0.09554807327
B67: April | C67: 0.06969384422 | D67: 0.06969384422
B68: Maj | C68: 0.06869479208 | D68: 0.06869479208
B69: Junij | C69: 0.06646536795 | D69: 0.06646536795
B70: Julij | C70: 0.0629779826 | D70: 0.0629779826
B71: Avgust | C71: 0.08233652793 | D71: 0.08233652793
B72: September | C72: 0.06676842298 | D72: 0.06676842298
B73: Oktober | C73: 0.07643422686 | D73: 0.07643422686
B74: November | C74: 0.09110439286 | D74: 0.09110439286
B75: December | C75: 0.0946757854 | D75: 0.0946757854
B78: Člen 15.3d
B79: "izračunane vrednosti iz točke (c) se pomnožijo z 12. Če so izračunane vrednosti enake nič, se, glede na to, kaj je nižje, spremenijo v 0,1 oziroma v najnižjo izračunano vrednost, ki ni enaka nič;"
B81: Plinski mesec | C81: Stopnja uporabe x 12
B82: Januar | C82: =IF(C64=0,MIN($D$64:$D$75),C64)*12 -> 1.377572894
B83: Februar | C83: 1.326034112
B84: Marec | C84: 1.146576879
B85: April | C85: 0.8363261307
B86: Maj | C86: 0.824337505
B87: Junij | C87: 0.7975844154
B88: Julij | C88: 0.7557357912
B89: Avgust | C89: 0.9880383352
B90: September | C90: 0.8012210758
B91: Oktober | C91: 0.9172107223
B92: November | C92: 1.093252714
B93: December | C93: 1.136109425
B95: Člen 15.3e
B96: "izhodiščna stopnja ustreznih sezonskih faktorjev se izračuna tako, da se vsaka od izračunanih vrednosti iz točke (d) potencira z istim eksponentom, ki ne sme biti manjši od 0 in večji od 2;"
B98: Plinski mesec | C98: Sezonski faktor
B99: Januar | C99: =POWER(C82,$E$13) -> 1.616858012
B100: Februar | C100: =POWER(C83,$E$13) -> 1.526975414
B101: Marec | C101: 1.227735377
B102: April | C102: 0.7648275081
B103: Maj | C103: 0.7484410324
B104: Junij | C104: 0.7123033536
B105: Julij | C105: =POWER(C88,$E$13) -> 0.6569842919
B106: Avgust | C106: 0.9821112657
B107: September | C107: 0.7171806229
B108: Oktober | C108: 0.8784229718
B109: November | C109: 1.143091108
B110: December | C110: 1.210961244
B112: Člen 15.3f
B113: "izračuna se aritmetična sredina zmnožkov izračunanih vrednosti iz točke (e) in multiplikator za mesečne standardne produkte zmogljivosti;"
B115: Plinski mesec | C115: Začetni sezonski faktor x multiplikator
C116: Mesečni | D116: Dnevni | E116: Znotraj dneva
B117: Januar | C117: =C99*$E$10 -> 2.344444118 | D117: =C99*$E$11 -> 4.446359534 | E117: =C99*$E$12 -> 4.527202435
B118: Februar | C118: =C100*$E$10 -> 2.214114351 | D118: =C100*$E$11 -> 4.199182389 | E118: =C100*$E$12 -> 4.27553116
B119: Marec | C119: 1.780216296 | D119: 3.376272285 | E119: 3.437659054
B120: April | C120: 1.108999887 | D120: 2.103275647 | E120: 2.141517023
B121: Maj | C121: 1.085239497 | D121: 2.058212839 | E121: 2.095634891
B122: Junij | C122: 1.032839863 | D122: 1.958834222 | E122: 1.99444939
B123: Julij | C123: 0.9526272233 | D123: 1.806706803 | E123: 1.839556017
B124: Avgust | C124: 1.424061335 | D124: 2.700805981 | E124: 2.749911544
B125: September | C125: 1.039911903 | D125: 1.972246713 | E125: 2.008105744
B126: Oktober | C126: 1.273713309 | D126: 2.415663172 | E126: 2.459584321
B127: November | C127: 1.657482106 | D127: 3.143500547 | E127: 3.200655102
B128: December | C128: 1.755893803 | D128: 3.33014342 | E128: 3.390691482
B129: Povprečje | C129: =AVERAGE(C117:C128) -> 1.472461974 | D129: =AVERAGE(D117:D128) -> 2.792600296 | E129: =AVERAGE(E117:E128) -> 2.843374847
B131: Člen 15.3g
B132: "izračunana vrednost iz točke (f) se primerja z razponom iz člena 13(1), kot sledi:
B133: (i) če je ta vrednost v tem razponu, je stopnja sezonskih faktorjev enaka ustreznim izračunanim vrednostim iz točke (e); (ii) če ta vrednost ni v razponu teh mejnih vrednosti, se uporablja točka (h);"
B135: Člen 15.3h
B136: "stopnja sezonskih faktorjev se izračuna kot zmnožek ustreznih izračunanih vrednosti iz točke (e), korekcijski faktor pa se izračuna:
B137: (i) če je izračunana vrednost iz točke (f) višja od 1,5, se korekcijski faktor izračuna tako, da se 1,5 deli s to vrednostjo; (ii) če je izračunana vrednost iz točke (f) nižja od 1, se korekcijski faktor izračuna tako, da se 1 deli s to vrednostjo.
C139: Mesečni | D139: Dnevni | E139: Znotraj dneva
B140: Korekcijski faktor | C140: =1.5/C129 -> 1.018702028 | D140: =3/D129 -> 1.074267594 | E140: =3/E129 -> 1.055084244
B142: Plinski mesec | C142: Sezonski faktor
C143: Mesečni | D143: Dnevni | E143: Znotraj dneva
B144: Januar | C144: =IF($C$129>1.5,C99*$C$140,C99) -> 1.616858012 | D144: =IF($D$129>3,C99*$D$140,C99) -> 1.616858012 | E144: =IF($E$129>3,C99*$E$140,C99) -> 1.616858012
B145: Februar | C145: =IF($C$129>1.5,C100*$C$140,C100) -> 1.526975414 | D145: =IF($D$129>3,C100*$D$140,C100) -> 1.526975414 | E145: =IF($E$129>3,C100*$E$140,C100) -> 1.526975414
B146: Marec | C146: 1.227735377 | D146: 1.227735377 | E146: 1.227735377
B147: April | C147: 0.7648275081 | D147: 0.7648275081 | E147: 0.7648275081
B148: Maj | C148: 0.7484410324 | D148: 0.7484410324 | E148: 0.7484410324
B149: Junij | C149: 0.7123033536 | D149: 0.7123033536 | E149: 0.7123033536
B150: Julij | C150: 0.6569842919 | D150: 0.6569842919 | E150: 0.6569842919
B151: Avgust | C151: 0.9821112657 | D151: 0.9821112657 | E151: 0.9821112657
B152: September | C152: 0.7171806229 | D152: 0.7171806229 | E152: 0.7171806229
B153: Oktober | C153: 0.8784229718 | D153: 0.8784229718 | E153: 0.8784229718
B154: November | C154: 1.143091108 | D154: 1.143091108 | E154: 1.143091108
B155: December | C155: 1.210961244 | D155: 1.210961244 | E155: 1.210961244
B157: Člen 15.4
B158: "Za dnevne standardne produkte zmogljivosti za zagotovljeno zmogljivost in znotrajdnevne standardne produkte zmogljivosti za zagotovljeno zmogljivost se sezonski faktor smiselno izračuna po postopku iz odstavka 3(f) do (h)."
B161: Člen 15.5
B162: "Postopek izračuna sezonskih faktorjev za četrtletne standardne produkte zmogljivosti za zagotovljeno zmogljivost:
B163: "(a) izhodiščna stopnja zadevnih sezonskih faktorjev se izračuna kot ena izmed naslednjih vrednosti: (i) enaka aritmetični sredini ustreznih sezonskih faktorjev, ki se uporabljajo za tri ustrezne mesece; (ii) enaka ali višja od najnižje in enaka ali nižja od najvišje stopnje ustreznih sezonskih faktorjev, ki se uporabljajo za tri ustrezne mesece;"
B165: (b) postopek iz odstavka 3(f) do (h) se izvede smiselno z uporabo izračunanih vrednostmi iz točke (a).
C167: (i) Aritmetična sredina | D167: (ii) minimum <= sezonski faktor <= maksimum
B168: Plinski kvartal | C168: Sezonski faktor(i) | D168: Sezonski faktorminimum | E168: Sezonski faktormaksimum | F168: Sezonski faktor(ii)
B169: Q2 | C169: =AVERAGE($C$144:$C$146) -> 1.457189601 | D169: =MIN($C$144:$C$146) -> 1.227735377 | E169: =MAX($C$144:$C$146) -> 1.616858012 | F169: 1.617 | L169: ID | M169: ID1 | N169: Naziv
B170: Q3 | C170: =AVERAGE($C$147:$C$149) -> 0.741857298 | D170: =MIN($C$147:$C$149) -> 0.7123033536 | E170: =MAX($C$147:$C$149) -> 0.7648275081 | F170: 0.751 | L170: 1 | M170: (i) | N170: Aritmetična sredina
B171: Q4 | C171: =AVERAGE($C$150:$C$152) -> 0.7854253935 | D171: =MIN($C$150:$C$152) -> 0.6569842919 | E171: =MAX($C$150:$C$152) -> 0.9821112657 | F171: 0.714 | L171: 2 | M171: (ii) | N171: minimum <= sezonski faktor <= maksimum
B172: Q1 | C172: =AVERAGE($C$153:$C$155) -> 1.077491774 | D172: =MIN($C$153:$C$155) -> 0.8784229718 | E172: =MAX($C$153:$C$155) -> 1.210961244 | F172: 1.211
L173: =MATCH(B177,Tabela1[ID1],0) -> 2
B175: Izbran postopek izračuna sezonskih faktorjev za četrtletne standardne produkte zmogljivosti za zagotovljeno zmogljivost:
B177: (ii) | C177: =VLOOKUP(MATCH(B177,Tabela1[ID1],0),Tabela1[],3) -> minimum <= sezonski faktor <= maksimum
B179: Člen 15.6
B180: "Za vse neletne standardne produkte zmogljivosti za zagotovljeno zmogljivost se izračunane vrednosti iz odstavkov 3 do 5 lahko zaokrožijo navzgor ali navzdol."
D182: Sezonski faktor
B183: Plinski mesec | C183: =C44 -> Prognoziran povprečni urni pretok v letu 2021 [kWh] | D183: Kvartalni | E183: Mesečni | F183: Dnevni | G183: Znotraj dneva
B184: Januar | C184: =ROUND(C45,3) -> 2212736.042 | D184: =IF($L$173=1,ROUND($C$169,3),$F$169) -> 1.617 | E184: =ROUND(C144,3) -> 1.617 | F184: =ROUND(D144,3) -> 1.617 | G184: =ROUND(E144,3) -> 1.617
B185: Februar | C185: =ROUND(C46,3) -> 2129951.514 | D185: =IF($L$173=1,ROUND($C$169,3),$F$169) -> 1.617 | E185: 1.527 | F185: 1.527 | G185: 1.527
B186: Marec | C186: 1841697.086 | D186: 1.617 | E186: 1.228 | F186: 1.228 | G186: 1.228
B187: April | C187: 1343354.664 | D187: =IF($L$173=1,ROUND($C$170,3),$F$170) -> 0.751 | E187: 0.765 | F187: 0.765 | G187: 0.765
B188: Maj | C188: 1324097.85 | D188: =IF($L$173=1,ROUND($C$170,3),$F$170) -> 0.751 | E188: 0.748 | F188: 0.748 | G188: 0.748
B189: Junij | C189: 1281125.514 | D189: 0.751 | E189: 0.712 | F189: 0.712 | G189: 0.712
B190: Julij | C190: 1213905.87 | D190: =IF($L$173=1,ROUND($C$171,3),$F$171) -> 0.714 | E190: 0.657 | F190: 0.657 | G190: 0.657
B191: Avgust | C191: 1587043.447 | D191: =IF($L$173=1,ROUND($C$171,3),$F$171) -> 0.714 | E191: 0.982 | F191: 0.982 | G191: 0.982
B192: September | C192: 1286966.925 | D192: 0.714 | E192: 0.717 | F192: 0.717 | G192: 0.717
B193: Oktober | C193: 1473276.101 | D193: =IF($L$173=1,ROUND($C$172,3),$F$172) -> 1.211 | E193: 0.878 | F193: 0.878 | G193: 0.878
B194: November | C194: 1756044.775 | D194: =IF($L$173=1,ROUND($C$172,3),$F$172) -> 1.211 | E194: 1.143 | F194: 1.143 | G194: 1.143
B195: December | C195: 1824883.665 | D195: 1.211 | E195: 1.211 | F195: 1.211 | G195: 1.211
